[Event "21st Dubai Open 2019"]
[Site "Dubai"]
[Date "2019.04.07"]
[Round "7.37"]
[White "Sultan, Ibrahim"]
[Black "Ravi, Thandalam Shanmugam"]
[Result "1/2-1/2"]
[ECO "E04"]
[WhiteElo "2121"]
[BlackElo "2276"]
[Annotator "NA"]
[PlyCount "114"]
[EventDate "2019.04.01"]
[EventType "swiss"]
[EventCountry "UAE"]
[SourceTitle "playchess.com"]
[Source "ChessBase"]
[SourceQuality "1"]
[TimeControl "5400+30"]

1. d4 {[%emt 0:05:48]} Nf6 {[%emt 0:00:18]} 2. c4 {[%emt 0:00:05]} e6 {[%emt 0:00:06]} 3. Nf3 {[%emt 0:00:03]} d5 {[%emt 0:00:22]} 4. g3 {[%emt 0:00:05]} dxc4 {[%emt 0:00:35]} 5. Bg2 {[%emt 0:00:05]} Nc6 {[%emt 0:00:39]} 6. O-O {[%emt 0:00:05]} Rb8 {[%emt 0:01:10]} 7. e3 {[%emt 0:00:07]} b5 {[%emt 0:01:11]} 8. Qe2 {[%emt 0:01:07] E04: Open Catalan: 5 Nf3} Be7 {[%emt 0:03:52]} 9. b3 {[%emt 0:00:29]} cxb3 {[%emt 0:00:42]} 10. axb3 {[%emt 0:00:04]} a6 {[%emt 0:00:42]} 11. Bd2 {[%emt 0:01:52]} O-O {[%emt 0:07:40]} 12. Rc1 {[%emt 0:00:40]} Bb7 {[%emt 0:01:10]} 13. Ne1 {[%emt 0:13:27]} Nb4 {[%emt 0:20:21]} (13... Nd5 14. Nd3 Qd7 15. Nc3 {1-0 (24) So,W (2780)-Wei,Y (2729) chess.com INT 2018}) 14. Bxb7 {[%emt 0:00:11]} Rxb7 {[%emt 0:00:06]} 15. Bxb4 {[%emt 0:00:08]} Bxb4 {[%emt 0:00:05]} 16. Rxa6 {[%emt 0:00:19]} Bxe1 {[%emt 0:01:38]} 17. Qxe1 {[%emt 0:00:29]} Qd5 $146 {[%emt 0:10:18]} 18. Qc3 {[%emt 0:02:27]} Ne4 {[%emt 0:09:19]} 19. Qc6 {[%emt 0:03:15]} Qf5 {[%emt 0:00:30]} 20. Ra2 {[%emt 0:04:09]} Ra7 {[%emt 0:05:22]} 21. Rac2 {[%emt 0:13:01]} b4 {[%emt 0:01:30]} 22. Kg2 {[%emt 0:07:59]} Rfa8 {[%emt 0:09:31]} 23. f3 {[%emt 0:00:38]} Nf6 {[%emt 0:07:49]} 24. e4 {[%emt 0:00:04]} Qg5 {[%emt 0:01:42]} 25. Qc5 {[%emt 0:00:09]} Qe3 {[%emt 0:01:51]} 26. Qxb4 {[%emt 0:03:53]} Ra2 {[%emt 0:00:33]} 27. Qd2 {[%emt 0:00:57]} Qxb3 {[%emt 0:00:14]} 28. Nc3 {[%emt 0:00:42]} Rxc2 {[%emt 0:01:11]} 29. Qxc2 {[%emt 0:01:04]} Qc4 {[%emt 0:00:30]} 30. Ne2 {[%emt 0:00:26]} Qa6 {[%emt 0:02:07]} 31. Kf2 {[%emt 0:00:29]} Ne8 {[%emt 0:01:36]} 32. Ke3 {[%emt 0:03:19]} Rb8 {[%emt 0:04:42]} 33. Qc3 {[%emt 0:04:00]} h6 {[%emt 0:01:49]} 34. Nf4 {[%emt 0:02:04]} Nd6 {[%emt 0:01:12]} 35. Nd3 {[%emt 0:01:01]} Nb5 {[%emt 0:01:49]} 36. Ra1 {[%emt 0:02:43]} Qd6 {[%emt 0:01:03]} 37. Qc5 {[%emt 0:00:28]} Rd8 {[%emt 0:00:31]} 38. Ra4 {[%emt 0:01:21]} Qxc5 {[%emt 0:01:11]} 39. Nxc5 {[%emt 0:06:26]} Kf8 {[%emt 0:00:52]} 40. Rb4 {[%emt 0:05:58]} Nd6 {[%emt 0:00:05]} 41. Nd3 {[%emt 0:01:03]} Ra8 {[%emt 0:00:22]} 42. h4 {[%emt 0:03:39]} Ke7 {[%emt 0:00:53]} 43. h5 {[%emt 0:00:20]} f6 {[%emt 0:01:06]} 44. g4 {[%emt 0:00:17]} Ra3 {[%emt 0:00:13]} 45. f4 {[%emt 0:13:07]} f5 {[%emt 0:00:28]} 46. gxf5 {[%emt 0:00:49]} exf5 {[%emt 0:00:04]} 47. e5 {[%emt 0:00:07]} Ne4 {[%emt 0:00:14]} 48. Rb7 {[%emt 0:01:38]} Kd7 {[%emt 0:00:35]} 49. Rb8 {[%emt 0:00:27]} c5 {[%emt 0:01:09]} 50. Ke2 {[%emt 0:00:47]} cxd4 {[%emt 0:00:55]} 51. Rb7+ {[%emt 0:00:09]} Ke6 {[%emt 0:00:13]} 52. Rxg7 {[%emt 0:00:25]} Nc3+ {[%emt 0:00:29]} 53. Kf3 {[%emt 0:01:31]} Ne4 {[%emt 0:00:59]} 54. Ke2 {[%emt 0:00:04]} Ra2+ {[%emt 0:00:19]} 55. Ke1 $1 {[%emt 0:00:16]} Ra1+ $11 {[%emt 0:00:38]} (55... Rh2 $1 $15 56. Nb4 (56. Rg6+ $2 Kd5 $19) 56... Rxh5 57. Rg6+ Kf7) 56. Ke2 {[%emt 0:00:05]} Ra2+ {[%emt 0:00:34]} 57. Ke1 {[%emt 0:00:04]} Ra1+ {[%emt 0:00:42]} 1/2-1/2

[Event "21st Dubai Open 2019"]
[Site "Dubai"]
[Date "2019.04.07"]
[Round "7.38"]
[White "Loay, Sameer"]
[Black "Ranaldi, Lucas"]
[Result "1/2-1/2"]
[ECO "A05"]
[WhiteElo "2073"]
[BlackElo "2275"]
[Annotator "NA"]
[PlyCount "117"]
[EventDate "2019.04.01"]
[EventType "swiss"]
[EventCountry "UAE"]
[SourceTitle "playchess.com"]
[Source "ChessBase"]
[SourceQuality "1"]
[TimeControl "5400+30"]

1. Nf3 {[%emt 0:00:00]} Nf6 {[%emt 0:00:00]} 2. g3 {[%emt 0:00:00]} b6 {[%emt 0:00:00]} 3. Bg2 {[%emt 0:00:00]} Bb7 {[%emt 0:00:00]} 4. O-O {[%emt 0:00:00]} c5 {[%emt 0:00:04]} 5. d3 {[%emt 0:00:30]} d5 {[%emt 0:03:05]} 6. Nbd2 {[%emt 0:00:06]} e6 {[%emt 0:02:18]} 7. e4 {[%emt 0:00:53]} Be7 {[%emt 0:00:44]} 8. Re1 {[%emt 0:00:42]} Nc6 {[%emt 0:00:43]} 9. exd5 {[%emt 0:00:51]} Nxd5 {[%emt 0:04:14]} 10. Nc4 {[%emt 0:06:18]} O-O {[%emt 0:00:55]} 11. Nfe5 {[%emt 0:06:56]} Nxe5 {[%emt 0:02:21]} 12. Nxe5 {[%emt 0:00:09]} Qc7 {[%emt 0:00:33]} 13. Qe2 {[%emt 0:01:18]} Rac8 {[%emt 0:05:30]} 14. h4 {[%emt 0:02:36]} Nf6 {[%emt 0:11:06]} 15. Bxb7 {[%emt 0:00:25]} Qxb7 {[%emt 0:01:26]} 16. a4 {[%emt 0:02:45]} a6 {[%emt 0:04:55]} 17. Bd2 {[%emt 0:02:13]} Rfd8 {[%emt 0:02:34]} 18. Qf3 {[%emt 0:19:44]} Qxf3 {[%emt 0:05:56]} 19. Nxf3 {[%emt 0:00:09]} Nd5 {[%emt 0:07:26]} 20. c3 {[%emt 0:06:36]} Bf6 {[%emt 0:10:18]} 21. Bg5 {[%emt 0:01:13]} Bxg5 {[%emt 0:00:18]} 22. hxg5 {[%emt 0:00:09]} Ne7 {[%emt 0:01:01]} 23. d4 {[%emt 0:01:50]} cxd4 {[%emt 0:02:15]} 24. Nxd4 {[%emt 0:00:10]} Rd5 {[%emt 0:02:11]} 25. Nf3 {[%emt 0:01:16]} Rcd8 {[%emt 0:00:42]} 26. Kg2 {[%emt 0:06:44]} Nc6 {[%emt 0:02:03]} 27. Re4 {[%emt 0:00:54]} Rf5 {[%emt 0:05:28]} 28. Rc4 {[%emt 0:11:29]} Ne7 {[%emt 0:01:22]} 29. Rc7 {[%emt 0:00:51]} Ng6 {[%emt 0:04:01]} 30. Ra7 {[%emt 0:04:36]} a5 {[%emt 0:01:55]} 31. Rb7 {[%emt 0:00:17]} Rd6 {[%emt 0:02:10]} 32. Re1 {[%emt 0:02:06]} h6 {[%emt 0:01:55]} 33. gxh6 {[%emt 0:01:09]} gxh6 {[%emt 0:00:02]} 34. Re4 {[%emt 0:02:49]} e5 {[%emt 0:01:55]} 35. Re2 {[%emt 0:06:28]} h5 {[%emt 0:00:42]} 36. Nd2 {[%emt 0:00:34]} Rc6 {[%emt 0:01:56]} 37. Ne4 {[%emt 0:00:35]} h4 {[%emt 0:02:10]} 38. Rd2 {[%emt 0:00:58]} Kg7 {[%emt 0:05:05]} 39. Rdd7 {[%emt 0:04:14]} Nf8 {[%emt 0:02:35]} 40. Nd6 {[%emt 0:06:30]} h3+ {[%emt 0:04:51]} 41. Kxh3 {[%emt 0:00:14]} Rh5+ {[%emt 0:00:16]} 42. Kg4 {[%emt 0:00:17]} Nxd7 {[%emt 0:00:21]} 43. Rxd7 {[%emt 0:00:15]} Rh7 {[%emt 0:01:18]} 44. Kf5 {[%emt 0:02:53]} Rh5+ {[%emt 0:00:15]} 45. Kg4 {[%emt 0:00:04]} Kg6 {[%emt 0:00:29]} 46. Nxf7 {[%emt 0:01:23]} Rf6 {[%emt 0:00:48]} 47. Nd6 {[%emt 0:00:05]} Rg5+ {[%emt 0:00:37]} 48. Kh3 {[%emt 0:00:18]} Rxf2 {[%emt 0:00:18]} 49. Ne4 {[%emt 0:00:09]} Rh5+ {[%emt 0:00:08]} 50. Kg4 {[%emt 0:00:04]} Rfh2 {[%emt 0:00:37]} 51. Rd6+ {[%emt 0:00:07]} Kf7 {[%emt 0:00:23]} 52. Rxb6 {[%emt 0:00:22]} Rh8 {[%emt 0:00:16]} 53. Ng5+ {[%emt 0:01:12]} Kg7 {[%emt 0:01:04]} 54. Rb7+ {[%emt 0:00:23]} Kf6 {[%emt 0:00:30]} 55. Rb6+ {[%emt 0:00:06]} Kg7 {[%emt 0:00:23]} 56. Rb7+ {[%emt 0:00:42]} Kf6 {[%emt 0:00:32]} 57. Rb6+ {[%emt 0:00:05]} Kg7 {[%emt 0:00:06]} 58. Rb7+ {[%emt 0:00:07]} Kf6 {[%emt 0:00:13]} 59. Rb6+ {[%emt 0:01:36]} 1/2-1/2

[Event "21st Dubai Open 2019"]
[Site "Dubai"]
[Date "2019.04.08"]
[Round "8.10"]
[White "Pichot, Alan"]
[Black "Nguyen, Anh Khoi"]
[Result "1-0"]
[ECO "B50"]
[WhiteElo "2566"]
[BlackElo "2481"]
[Annotator "RC"]
[PlyCount "93"]
[EventDate "2019.04.01"]
[EventType "swiss"]
[EventCountry "UAE"]
[SourceTitle "playchess.com"]
[Source "ChessBase"]
[SourceQuality "1"]
[TimeControl "5400+30"]

1. e4 {[%emt 0:00:00]} c5 {[%emt 0:00:00]} 2. Nf3 {[%emt 0:00:00]} d6 {[%emt 0:00:00]} 3. c3 {[%emt 0:00:00]} Nf6 {[%emt 0:00:00]} 4. h3 {[%emt 0:00:00]} Nbd7 {[%emt 0:00:47]} 5. Bd3 {[%emt 0:00:26]} b6 {[%emt 0:00:20]} 6. O-O {[%emt 0:00:29]} Bb7 {[%emt 0:00:05]} 7. Re1 {[%emt 0:00:11]} Qc7 {[%emt 0:00:41]} 8. Bc2 {[%emt 0:00:35]} Rc8 {[%emt 0:00:07]} 9. a4 {[%emt 0:00:25]} a6 {[%emt 0:01:55]} 10. Na3 {[%emt 0:00:10]} e6 {[%emt 0:02:19]} 11. d3 {[%emt 0:03:15]} Be7 {[%emt 0:01:04]} 12. Bf4 {[%emt 0:00:31]} O-O {[%emt 0:08:23]} 13. d4 {[%emt 0:07:27]} cxd4 {[%emt 0:01:08]} 14. cxd4 {[%emt 0:00:21]} Qb8 {[%emt 0:10:41]} 15. Nb1 {[%emt 0:03:44]} e5 {[%emt 0:13:20]} 16. Bh2 {[%emt 0:01:07]} Rfe8 {[%emt 0:05:17]} 17. d5 {[%emt 0:06:51]} a5 {[%emt 0:04:48]} 18. Nc3 {[%emt 0:04:38]} Nc5 {[%emt 0:00:20]} 19. Rb1 {[%emt 0:02:38]} Nfd7 {[%emt 0:04:58]} 20. Qd2 {[%emt 0:03:54]} Ba6 {[%emt 0:02:45]} 21. b4 {[%emt 0:06:17]} axb4 {[%emt 0:00:12]} 22. Rxb4 {[%emt 0:00:06]} Rc7 {[%emt 0:02:19]} 23. Reb1 {[%emt 0:03:01]} Rec8 {[%emt 0:01:06]} 24. Ne1 {[%emt 0:02:10]} Nb7 {[%emt 0:09:20]} 25. Nb5 {[%emt 0:03:38]} Bxb5 {[%emt 0:00:36]} 26. Rxb5 {[%emt 0:00:12]} Qa8 {[%emt 0:03:02]} 27. Bg3 {[%emt 0:04:18]} Na5 {[%emt 0:02:39]} 28. Bd1 {[%emt 0:02:17]} Nc4 {[%emt 0:03:17]} 29. Qa2 {[%emt 0:01:54]} Bg5 {[%emt 0:03:26]} 30. Nf3 {[%emt 0:07:26]} Bh6 {[%emt 0:01:19]} 31. Bh4 {[%emt 0:00:48]} f6 {[%emt 0:01:30]} 32. Be2 {[%emt 0:01:40]} Na5 {[%emt 0:03:37]} 33. Ne1 {[%emt 0:01:18]} Nc4 {[%emt 0:02:01]} 34. Rd1 {[%emt 0:06:42]} Ra7 {[%emt 0:02:02]} 35. Rb4 {[%emt 0:00:35]} b5 {[%emt 0:00:35]} 36. Bg4 {[%emt 0:00:57]} Ncb6 {[%emt 0:03:53]} 37. Rxb5 {[%emt 0:09:20]} Rxa4 {[%emt 0:00:20]} 38. Qe2 {[%emt 0:01:07]} Ra1 {[%emt 0:02:25]} 39. Rbb1 {[%emt 0:01:46]} Rxb1 {[%emt 0:00:39]} 40. Rxb1 {[%emt 0:00:02]} Kh8 {[%emt 0:04:53]} 41. Nd3 {[%emt 0:01:20]} Qa6 {[%emt 0:00:25]} 42. Nxe5 {[%emt 0:00:43]} Qxe2 {[%emt 0:00:35]} 43. Nf7+ {[%emt 0:00:04]} Kg8 {[%emt 0:00:03]} 44. Nxh6+ {[%emt 0:00:06]} gxh6 {[%emt 0:00:03]} 45. Bxe2 {[%emt 0:00:05]} Na4 {[%emt 0:00:32]} 46. Bg4 {[%emt 0:01:47]} Nac5 {[%emt 0:00:07]} 47. Bg3 {[%emt 0:01:38]} 1-0

[Event "21st Dubai Open 2019"]
[Site "Dubai"]
[Date "2019.04.08"]
[Round "8.15"]
[White "Bharath Subramaniyam H"]
[Black "Vokhidov, Shamsiddin"]
[Result "0-1"]
[ECO "B22"]
[WhiteElo "2301"]
[BlackElo "2494"]
[Annotator "ChessBase"]
[PlyCount "92"]
[EventDate "2019.04.01"]
[EventType "swiss"]
[EventCountry "UAE"]
[SourceTitle "playchess.com"]
[Source "ChessBase"]
[SourceQuality "1"]
[TimeControl "5400+30"]

1. e4 {[%emt 0:00:00]} c5 {[%emt 0:00:00]} 2. c3 {[%emt 0:00:07]} Nf6 {[%emt 0:03:12]} 3. e5 {[%emt 0:00:00]} Nd5 {[%emt 0:00:03]} 4. Nf3 {[%emt 0:00:18]} d6 {[%emt 0:00:24]} 5. Bc4 {[%emt 0:15:18]} Nb6 {[%emt 0:13:10]} 6. Bb5+ {[%emt 0:02:25]} Bd7 {[%emt 0:08:01]} 7. Qe2 {[%emt 0:14:50]} Bxb5 {[%emt 0:05:22]} 8. Qxb5+ {[%emt 0:00:08]} Qd7 {[%emt 0:00:02]} 9. Qxd7+ {[%emt 0:00:47]} N8xd7 {[%emt 0:04:23]} 10. exd6 {[%emt 0:00:28]} e6 {[%emt 0:01:12]} 11. d4 {[%emt 0:00:28]} Bxd6 {[%emt 0:00:14]} 12. O-O {[%emt 0:00:47]} f6 {[%emt 0:00:37]} 13. Nbd2 {[%emt 0:05:08]} Kf7 {[%emt 0:02:46]} 14. Ne4 {[%emt 0:13:58]} Be7 {[%emt 0:01:00]} 15. b3 {[%emt 0:01:18]} c4 {[%emt 0:10:43]} 16. Bf4 {[%emt 0:06:15]} Nd5 {[%emt 0:07:43]} 17. Bg3 {[%emt 0:02:30]} b5 {[%emt 0:02:44]} 18. bxc4 {[%emt 0:12:10]} bxc4 {[%emt 0:00:16]} 19. Rfe1 {[%emt 0:00:29]} Rhc8 {[%emt 0:02:12]} 20. a4 {[%emt 0:07:23]} a5 {[%emt 0:02:10]} 21. Reb1 {[%emt 0:01:57]} Ra7 {[%emt 0:00:37]} 22. Rb5 {[%emt 0:00:31]} h6 {[%emt 0:00:30]} 23. Rc1 {[%emt 0:05:18]} Rc6 {[%emt 0:00:25]} 24. Nfd2 {[%emt 0:03:19]} f5 {[%emt 0:01:27]} 25. Nc5 {[%emt 0:00:07]} Bxc5 {[%emt 0:02:05]} 26. dxc5 {[%emt 0:00:55]} f4 {[%emt 0:00:03]} 27. Ne4 {[%emt 0:00:19]} fxg3 {[%emt 0:00:11]} 28. fxg3 {[%emt 0:00:02]} Ke7 {[%emt 0:00:11]} 29. Rd1 {[%emt 0:00:38]} Nc7 {[%emt 0:00:41]} 30. Rd6 {[%emt 0:00:27]} Rca6 {[%emt 0:02:29]} 31. c6 {[%emt 0:01:07]} Nxb5 {[%emt 0:00:46]} 32. axb5 {[%emt 0:00:09]} Rb6 {[%emt 0:00:02]} 33. cxd7 {[%emt 0:00:22]} Rxd6 {[%emt 0:00:06]} 34. Nxd6 {[%emt 0:00:02]} Kxd7 {[%emt 0:01:31]} 35. Nxc4 {[%emt 0:01:01]} a4 {[%emt 0:00:07]} 36. b6 {[%emt 0:00:08]} Ra6 {[%emt 0:00:49]} 37. Ne5+ {[%emt 0:00:50]} Kc8 {[%emt 0:00:12]} 38. Kf2 {[%emt 0:00:23]} a3 {[%emt 0:00:07]} 39. Nd3 {[%emt 0:00:08]} a2 {[%emt 0:00:11]} 40. Nb4 {[%emt 0:00:03]} a1=Q {[%emt 0:00:13]} 41. Nxa6 {[%emt 0:00:04]} Qxa6 {[%emt 0:00:04]} 42. b7+ {[%emt 0:00:08]} Kxb7 {[%emt 0:00:03]} 43. Ke3 {[%emt 0:00:06]} Qc4 {[%emt 0:00:04]} 44. Kd2 {[%emt 0:00:05]} e5 {[%emt 0:00:04]} 45. Kc2 {[%emt 0:00:03]} e4 {[%emt 0:00:04]} 46. Kd2 {[%emt 0:00:02]} Qd3+ {[%emt 0:00:03]} 0-1

[Event "21st Dubai Open 2019"]
[Site "Dubai"]
[Date "2019.04.08"]
[Round "8.16"]
[White "Pranav Vijay"]
[Black "Darini, Pouria"]
[Result "1/2-1/2"]
[ECO "B51"]
[WhiteElo "2265"]
[BlackElo "2455"]
[Annotator "ChessBase"]
[PlyCount "218"]
[EventDate "2019.04.01"]
[EventType "swiss"]
[EventCountry "UAE"]
[SourceTitle "playchess.com"]
[Source "ChessBase"]
[SourceQuality "1"]
[TimeControl "5400+30"]

1. e4 {[%emt 0:00:00]} c5 {[%emt 0:00:00]} 2. Nf3 {[%emt 0:00:00]} d6 {[%emt 0:00:00]} 3. Bb5+ {[%emt 0:00:00]} Nd7 {[%emt 0:00:00]} 4. d4 {[%emt 0:00:15]} cxd4 {[%emt 0:00:05]} 5. Qxd4 {[%emt 0:00:08]} a6 {[%emt 0:00:03]} 6. Bxd7+ {[%emt 0:00:43]} Bxd7 {[%emt 0:00:02]} 7. Nc3 {[%emt 0:01:22]} e5 {[%emt 0:02:06]} 8. Qd3 {[%emt 0:00:27]} h6 {[%emt 0:00:02]} 9. Nd2 {[%emt 0:02:29]} Rc8 {[%emt 0:06:20]} 10. Nc4 {[%emt 0:02:02]} Be6 {[%emt 0:00:56]} 11. Ne3 {[%emt 0:00:29]} Nf6 {[%emt 0:01:54]} 12. O-O {[%emt 0:00:47]} Qc7 {[%emt 0:04:12]} 13. Rd1 {[%emt 0:04:16]} Be7 {[%emt 0:03:52]} 14. Bd2 {[%emt 0:03:59]} O-O {[%emt 0:13:08]} 15. b3 {[%emt 0:02:19]} Qc5 {[%emt 0:07:56]} 16. Be1 {[%emt 0:02:50]} Rfe8 {[%emt 0:10:58]} 17. a4 {[%emt 0:04:34]} Bf8 {[%emt 0:18:42]} 18. Rac1 {[%emt 0:01:39]} Be7 {[%emt 0:05:08]} 19. Qe2 {[%emt 0:03:46]} Bd8 {[%emt 0:07:12]} 20. Rb1 {[%emt 0:07:30]} Bb6 {[%emt 0:07:03]} 21. Ncd5 {[%emt 0:07:01]} Nxd5 {[%emt 0:04:02]} 22. exd5 {[%emt 0:01:41]} Bd7 {[%emt 0:00:01]} 23. Nc4 {[%emt 0:01:04]} Ba7 {[%emt 0:02:32]} 24. Bd2 {[%emt 0:05:43]} Qc7 {[%emt 0:00:01]} 25. Be3 {[%emt 0:02:20]} Bxe3 {[%emt 0:00:10]} 26. Qxe3 {[%emt 0:00:19]} Bf5 {[%emt 0:00:19]} 27. Rbc1 {[%emt 0:00:19]} Qe7 {[%emt 0:04:50]} 28. Qb6 {[%emt 0:01:39]} Red8 {[%emt 0:00:08]} 29. Ne3 {[%emt 0:00:35]} Bg6 {[%emt 0:00:00]} 30. c4 {[%emt 0:00:12]} Qc7 {[%emt 0:02:23]} 31. a5 {[%emt 0:01:05]} f5 {[%emt 0:00:28]} 32. f4 {[%emt 0:01:49]} exf4 {[%emt 0:00:24]} 33. Nc2 {[%emt 0:00:34]} Qc5+ {[%emt 0:00:54]} 34. Nd4 {[%emt 0:00:06]} Bh5 {[%emt 0:00:14]} 35. Rd2 {[%emt 0:00:13]} Re8 {[%emt 0:00:51]} 36. Qxc5 {[%emt 0:00:21]} dxc5 {[%emt 0:00:16]} 37. Nxf5 {[%emt 0:00:07]} Re5 {[%emt 0:00:47]} 38. Nd6 {[%emt 0:01:47]} Rc7 {[%emt 0:00:00]} 39. Rb1 {[%emt 0:01:02]} g5 {[%emt 0:00:53]} 40. b4 {[%emt 0:01:27]} Bg6 {[%emt 0:00:07]} 41. Rbb2 {[%emt 0:00:51]} g4 {[%emt 0:01:00]} 42. g3 {[%emt 0:01:45]} f3 {[%emt 0:00:15]} 43. Kf2 {[%emt 0:01:51]} Rh5 {[%emt 0:00:30]} 44. h4 {[%emt 0:05:21]} gxh3 {[%emt 0:00:01]} 45. Kxf3 {[%emt 0:00:06]} cxb4 {[%emt 0:00:20]} 46. g4 {[%emt 0:00:14]} Re5 {[%emt 0:01:21]} 47. Rxb4 {[%emt 0:00:33]} Rd7 {[%emt 0:00:00]} 48. Rb6 {[%emt 0:00:28]} h5 49. gxh5 {[%emt 0:02:18]} Rxh5 {[%emt 0:01:32]} 50. Kg3 {[%emt 0:00:04]} Rg5+ {[%emt 0:00:28]} 51. Kh2 {[%emt 0:00:09]} Re7 {[%emt 0:00:33]} 52. Rxb7 {[%emt 0:00:42]} Re1 {[%emt 0:00:00]} 53. c5 {[%emt 0:02:12]} Bh5 {[%emt 0:00:23]} 54. Rf2 {[%emt 0:01:25]} Rxd5 {[%emt 0:00:33]} 55. Nf5 {[%emt 0:00:07]} Kh8 {[%emt 0:00:48]} 56. c6 {[%emt 0:02:29]} Rc5 {[%emt 0:00:27]} 57. Ne7 {[%emt 0:05:38]} Re2 {[%emt 0:00:48]} 58. Rxe2 {[%emt 0:00:37]} Bxe2 {[%emt 0:00:01]} 59. Kxh3 {[%emt 0:00:51]} Bf3 {[%emt 0:00:10]} 60. Kg3 {[%emt 0:04:44]} Bxc6 {[%emt 0:01:16]} 61. Rc7 {[%emt 0:00:09]} Rxa5 {[%emt 0:00:17]} 62. Rxc6 Kg7 {[%emt 0:00:07]} 63. Kf4 {[%emt 0:00:10]} Kf7 {[%emt 0:00:10]} 64. Nf5 {[%emt 0:00:01]} Ra1 {[%emt 0:00:13]} 65. Ng3 {[%emt 0:00:29]} Ke7 {[%emt 0:00:50]} 66. Ne4 {[%emt 0:00:08]} Kd7 {[%emt 0:00:05]} 67. Rh6 {[%emt 0:00:04]} Ra5 {[%emt 0:00:32]} 68. Ke3 {[%emt 0:00:05]} Ra1 {[%emt 0:00:19]} 69. Kd4 {[%emt 0:00:05]} Rd1+ {[%emt 0:00:03]} 70. Ke5 {[%emt 0:00:03]} a5 {[%emt 0:00:16]} 71. Nc3 {[%emt 0:00:11]} Re1+ {[%emt 0:00:19]} 72. Kd5 {[%emt 0:00:01]} Re3 {[%emt 0:00:58]} 73. Nb5 {[%emt 0:00:06]} a4 {[%emt 0:00:30]} 74. Nd4 {[%emt 0:00:20]} a3 {[%emt 0:00:51]} 75. Ra6 {[%emt 0:00:18]} Ke8 {[%emt 0:01:22]} 76. Nf5 {[%emt 0:00:11]} Re1 {[%emt 0:00:22]} 77. Rxa3 {[%emt 0:00:27]} Kf7 {[%emt 0:00:17]} 78. Nd6+ {[%emt 0:00:05]} Kf6 {[%emt 0:00:39]} 79. Rf3+ {[%emt 0:00:07]} Kg6 {[%emt 0:00:18]} 80. Nc4 {[%emt 0:00:11]} Kg5 {[%emt 0:00:28]} 81. Ne5 {[%emt 0:00:04]} Ra1 {[%emt 0:00:10]} 82. Rg3+ {[%emt 0:00:04]} Kf5 {[%emt 0:00:08]} 83. Rf3+ {[%emt 0:00:13]} Kg5 {[%emt 0:00:05]} 84. Nc4 {[%emt 0:00:01]} Re1 {[%emt 0:00:47]} 85. Ne3 {[%emt 0:00:02]} Ra1 {[%emt 0:00:07]} 86. Ke5 {[%emt 0:00:01]} Ra5+ {[%emt 0:00:09]} 87. Nd5 {[%emt 0:00:02]} Kg4 {[%emt 0:00:08]} 88. Rf8 {[%emt 0:00:02]} Ra3 {[%emt 0:00:22]} 89. Nf6+ {[%emt 0:00:07]} Kf3 {[%emt 0:00:21]} 90. Rg8 {[%emt 0:00:42]} Ra5+ {[%emt 0:00:55]} 91. Nd5 {[%emt 0:00:05]} Ra4 {[%emt 0:00:31]} 92. Rf8+ {[%emt 0:00:05]} Kg3 {[%emt 0:00:26]} 93. Ne3 {[%emt 0:00:13]} Ra5+ {[%emt 0:00:09]} 94. Nd5 {[%emt 0:00:06]} Ra4 {[%emt 0:00:15]} 95. Nc3 {[%emt 0:00:02]} Ra5+ {[%emt 0:00:12]} 96. Ke4 {[%emt 0:00:02]} Kg4 {[%emt 0:00:25]} 97. Rg8+ {[%emt 0:00:12]} Rg5 {[%emt 0:00:01]} 98. Ra8 {[%emt 0:00:11]} Rc5 {[%emt 0:00:36]} 99. Kd4 {[%emt 0:00:05]} Rc7 {[%emt 0:00:53]} 100. Nd5 {[%emt 0:00:01]} Rc1 {[%emt 0:00:23]} 101. Rg8+ {[%emt 0:00:07]} Kf5 {[%emt 0:00:19]} 102. Rf8+ {[%emt 0:00:08]} Ke6 {[%emt 0:00:24]} 103. Rf6+ {[%emt 0:00:06]} Kd7 {[%emt 0:00:05]} 104. Nc3 {[%emt 0:00:09]} Ke7 {[%emt 0:00:15]} 105. Ra6 {[%emt 0:00:04]} Kd7 {[%emt 0:00:14]} 106. Ne4 {[%emt 0:00:05]} Rd1+ {[%emt 0:00:13]} 107. Ke5 {[%emt 0:00:07]} Re1 {[%emt 0:00:13]} 108. Rd6+ {[%emt 0:00:45]} Kc7 {[%emt 0:00:15]} 109. Kd5 {[%emt 0:00:12]} Re2 1/2-1/2

[Event "21st Dubai Open 2019"]
[Site "Dubai"]
[Date "2019.04.08"]
[Round "8.17"]
[White "Abelgas, Roel"]
[Black "Haug, Johannes"]
[Result "0-1"]
[ECO "E11"]
[WhiteElo "2256"]
[BlackElo "2424"]
[Annotator "NA"]
[PlyCount "96"]
[EventDate "2019.04.01"]
[EventType "swiss"]
[EventCountry "UAE"]
[SourceTitle "playchess.com"]
[Source "ChessBase"]
[SourceQuality "1"]
[TimeControl "5400+30"]

1. d4 {[%emt 0:00:00]} Nf6 {[%emt 0:03:47]} 2. c4 {[%emt 0:00:00]} e6 {[%emt 0:00:06]} 3. Nf3 {[%emt 0:00:08]} Bb4+ {[%emt 0:00:15]} 4. Nbd2 {[%emt 0:00:16]} O-O {[%emt 0:00:05]} 5. g3 {[%emt 0:00:12]} d5 {[%emt 0:00:18]} 6. Qb3 {[%emt 0:00:52] E01: Catalan: Early deviations} (6. Bg2 b6 7. O-O Bb7 8. b3 c5 9. Bb2 Nc6 10. cxd5 Nxd5 11. dxc5 Bxc5 12. a3 Be7 13. b4 Bf6 14. Qb3 a5 15. e4 Nc7 16. Bxf6 Qxf6 17. b5 Ne5 18. Nxe5 Qxe5 19. a4 Rfd8 {1-0 (43) Harikrishna,P (2744)-Le,Q (2737) Huaian 2017}) 6... Be7 {[%emt 0:12:46]} 7. Bg2 {[%emt 0:00:42]} b6 {[%emt 0:00:06]} 8. O-O {[%emt 0:00:24]} Bb7 {[%emt 0:00:15]} 9. Qa4 $146 {[%emt 0:00:39]} ({Predecessor:} 9. cxd5 exd5 10. Ne5 Nbd7 11. Ndf3 c6 12. a4 Nxe5 13. Nxe5 Nd7 {1-0 (60) Goglidze,V-Gamrekeil,G Georgia 1955}) 9... Nbd7 {[%emt 0:09:18]} 10. Ne5 {[%emt 0:01:06]} Nxe5 {[%emt 0:05:08]} 11. dxe5 {[%emt 0:00:35]} Nd7 {[%emt 0:00:06]} 12. cxd5 {[%emt 0:00:23]} Bxd5 {[%emt 0:06:51]} 13. Bxd5 {[%emt 0:03:43]} exd5 {[%emt 0:03:10]} 14. Nf3 {[%emt 0:00:15]} f6 {[%emt 0:12:37]} 15. Nd4 {[%emt 0:17:30]} fxe5 {[%emt 0:05:28]} 16. Nc6 {[%emt 0:00:18] [#]} Qe8 $1 {[%emt 0:01:31]} 17. Rd1 {[%emt 0:25:44]} Bc5 {[%emt 0:08:57]} 18. e3 {[%emt 0:04:29]} Nf6 {[%emt 0:03:48]} 19. Bd2 {[%emt 0:05:35]} Bd6 {[%emt 0:10:11]} 20. Rac1 {[%emt 0:00:31]} Qh5 {[%emt 0:01:10]} 21. Be1 {[%emt 0:06:06]} Qh3 {[%emt 0:00:34]} 22. Qb5 {[%emt 0:00:50]} (22. Qh4 {is a better defense.} Qf5 23. Qa4) 22... Rf7 {[%emt 0:01:29]} 23. Qf1 {[%emt 0:01:37]} Qh5 {[%emt 0:01:21]} 24. Qg2 {[%emt 0:01:00]} a5 {[%emt 0:01:29]} 25. Rxd5 {[%emt 0:03:28]} Nxd5 {[%emt 0:01:29]} 26. Qxd5 {[%emt 0:00:03]} Raf8 {[%emt 0:00:48]} 27. f4 {[%emt 0:02:21]} Qe2 {[%emt 0:01:42]} 28. Bf2 {[%emt 0:02:16]} Qxb2 {[%emt 0:00:24]} 29. Re1 {[%emt 0:00:46]} Qc3 $19 {[%emt 0:02:18]} 30. f5 {[%emt 0:07:02]} e4 {[%emt 0:02:43]} 31. Nd4 {[%emt 0:01:09]} Qc5 {[%emt 0:01:53]} 32. Qxe4 {[%emt 0:00:17]} Rxf5 {[%emt 0:01:05]} 33. Re2 {[%emt 0:06:39]} Qe5 {[%emt 0:01:20]} 34. Qd3 {[%emt 0:00:16]} R5f6 {[%emt 0:00:11]} 35. Nc6 {[%emt 0:01:44]} Qe8 {[%emt 0:00:11]} 36. Qc4+ {[%emt 0:02:12]} Qf7 {[%emt 0:00:36]} 37. Qc2 {[%emt 0:00:17]} Bc5 {[%emt 0:00:44]} 38. Ne5 {[%emt 0:00:46]} Qe6 {[%emt 0:00:12]} 39. Nd3 {[%emt 0:00:03]} Qe4 {[%emt 0:01:15]} 40. Nxc5 {[%emt 0:01:06]} Qxc2 {[%emt 0:00:06]} 41. Rxc2 {[%emt 0:00:03]} bxc5 {[%emt 0:00:28]} 42. e4 {[%emt 0:00:31]} Rc6 {[%emt 0:00:29]} 43. Rc4 {[%emt 0:00:25]} Rb8 {[%emt 0:00:34]} 44. Be1 {[%emt 0:01:54]} Rb1 {[%emt 0:00:12]} 45. Kf1 {[%emt 0:00:14]} a4 {[%emt 0:01:21]} 46. Rc2 {[%emt 0:01:37]} a3 {[%emt 0:00:56]} 47. Rc3 {[%emt 0:00:19]} c4 {[%emt 0:00:13]} 48. h4 {[%emt 0:02:36]} Kf7 {[%emt 0:00:15]} 0-1